bitfinex/quotes_BTCUSD_20251104
["timestamp","ask_amount","ask_price","bid_price","bid_amount"]
[1762289022887,0.02568277,101090.0,101070.0,0.22188252]
[1762289023072,0.63152451,101080.0,101070.0,0.19788252]
[1762289023274,0.02568277,101090.0,101080.0,0.22186307]
[1762289023812,0.02568277,101090.0,101080.0,0.23404535]
[1762289024045,0.02568277,101090.0,101080.0,0.47976535]
[1762289024239,0.02568277,101090.0,101080.0,0.51376534]
[1762289024438,0.02568277,101090.0,101080.0,1.15478985]
[1762289024656,0.02568277,101090.0,101080.0,1.47078985]
[1762289024862,0.02568277,101090.0,101080.0,4.50478984]
[1762289025058,0.02568277,101090.0,101080.0,3.88347496]
[1762289025266,0.02568277,101090.0,101080.0,3.87347497]
[1762289025493,0.02776964,101090.0,101080.0,4.51499947]
[1762289025867,0.02776964,101090.0,101080.0,4.91499947]
[1762289026336,0.02776964,101090.0,101080.0,4.28347496]
[1762289026555,0.02776964,101090.0,101080.0,5.11499947]
[1762289026767,0.02606964,101090.0,101080.0,5.11499947]
[1762289027721,0.0002,101110.0,101100.0,0.42182393]
[1762289027927,0.00034478,101110.0,101100.0,0.22182393]
[1762289028332,0.63186929,101110.0,101100.0,0.024]
[1762289028538,0.63186929,101110.0,101080.0,0.0335]
[1762289028747,0.63152451,101090.0,101060.0,0.20779702]
[1762289028950,0.63152451,101080.0,101070.0,0.20674082]
[1762289029297,0.63152451,101100.0,101090.0,0.024]
[1762289029937,0.00034478,101110.0,101090.0,0.024]
[1762289030155,0.63152451,101100.0,101090.0,0.024]
[1762289030372,0.63152451,101100.0,101080.0,0.20775539]
[1762289030616,0.63152451,101090.0,101070.0,0.024]
[1762289030840,0.63152451,101080.0,101060.0,0.20779714]
[1762289031072,0.00034478,101110.0,101070.0,0.20777678]
[1762289031288,0.63152451,101100.0,101080.0,0.1978626]
[1762289031490,0.63152451,101100.0,101090.0,0.024]
[1762289031908,0.63186929,101110.0,101090.0,0.19784275]
[1762289032110,0.00034478,101110.0,101090.0,0.1978373]
[1762289032380,0.63186929,101110.0,101100.0,0.024]
[1762289032548,0.63186929,101110.0,101100.0,0.19782393]
[1762289032549,0.00034478,101110.0,101100.0,0.19782393]
[1762289032761,0.00034478,101110.0,101100.0,0.22182393]
[1762289033172,0.00034478,101110.0,101090.0,0.1978373]
[1762289033173,0.00034478,101110.0,101090.0,3.1978423]
[1762289033379,0.63237175,101110.0,101100.0,0.024]
[1762289034042,0.00084724,101110.0,101100.0,0.024]
[1762289034245,0.63237175,101110.0,101080.0,0.20775516]
[1762289034448,0.00034478,101110.0,101090.0,0.19783826]
[1762289034662,0.00034478,101110.0,101100.0,0.024]
[1762289035278,0.00034478,101110.0,101080.0,0.20775516]
[1762289035481,0.00034478,101110.0,101090.0,0.19784136]
[1762289035691,0.00034478,101110.0,101100.0,0.024]
[1762289035895,0.63186929,101110.0,101100.0,0.024]
[1762289036313,0.63186929,101110.0,101100.0,0.22182393]
[1762289036550,0.63186929,101110.0,101100.0,0.024]
[1762289036773,0.00034478,101110.0,101100.0,0.19782393]
[1762289037006,0.63186929,101110.0,101100.0,0.22182393]
[1762289037244,0.63186929,101110.0,101100.0,0.024]
[1762289037509,0.63186929,101110.0,101090.0,0.19783996]
[1762289037732,0.63152451,101100.0,101070.0,0.05518]
[1762289037942,0.63152451,101080.0,101070.0,0.04568]
[1762289038148,0.61543699,101080.0,101070.0,0.06968]
[1762289038345,1.2469615,101080.0,101050.0,0.28214875]
[1762289038553,0.63152451,101080.0,101050.0,0.20781675]
[1762289038787,0.63152451,101060.0,101050.0,0.23181675]
[1762289038987,0.63152451,101080.0,101050.0,0.23181675]
[1762289038988,0.63152451,101080.0,101060.0,0.19790076]
[1762289039196,0.63152451,101080.0,101070.0,0.024]
[1762289039825,0.63152451,101080.0,101050.0,0.20781675]
[1762289040034,0.63166924,101080.0,101050.0,0.1979216]
[1762289040240,0.63152451,101060.0,101050.0,0.1979216]
[1762289040445,0.63152451,101060.0,101050.0,0.2219216]
[1762289040650,0.00014473,101080.0,101070.0,0.22188265]
[1762289040856,0.63166924,101080.0,101050.0,0.20781769]
[1762289041061,0.63152451,101060.0,101050.0,0.19792182]
[1762289041266,0.63152451,101060.0,101050.0,0.20785791]
[1762289041508,0.63152451,101060.0,101050.0,0.23185791]
[1762289041717,0.63166924,101080.0,101070.0,0.19788265]
[1762289041921,1.26319375,101080.0,101050.0,4e-05]
[1762289042131,0.63152451,101060.0,101050.0,0.22196182]
[1762289042332,0.63152451,101060.0,101050.0,0.02404]
[1762289042565,0.63152451,101060.0,101050.0,4e-05]
[1762289042774,0.63152451,101060.0,101050.0,0.22196182]
[1762289042979,0.63132451,101060.0,101050.0,0.22196182]
[1762289043180,0.63132451,101060.0,101050.0,0.19796182]
[1762289043387,0.63132451,101060.0,101050.0,0.02404]
[1762289043594,0.63132451,101060.0,101050.0,0.22196182]
[1762289043812,0.00996222,101080.0,101060.0,0.1979014]
[1762289044003,0.64148673,101080.0,101070.0,0.024]
[1762289044212,1.00168031,101080.0,101060.0,0.024]
[1762289044424,0.53790223,101060.0,101050.0,4e-05]
[1762289044630,0.78003223,101060.0,101050.0,4e-05]
[1762289045036,2.04308125,101060.0,101050.0,4e-05]
[1762289045262,1.41155674,101060.0,101050.0,0.02404]
[1762289045680,0.58213,101060.0,101050.0,0.02404]
[1762289045881,1.41155674,101060.0,101050.0,4e-05]
[1762289046088,2.04308125,101060.0,101050.0,4e-05]
[1762289046296,1.41155674,101060.0,101050.0,4e-05]
[1762289046498,1.63453352,101060.0,101050.0,4e-05]
[1762289047572,0.85450129,101020.0,101010.0,0.02597512]
[1762289047766,1.16356188,101020.0,101010.0,0.00197512]
[1762289047923,1.06341129,101020.0,101010.0,0.02597512]
[1762289048354,0.96558129,101020.0,101010.0,0.02597512]
[1762289048527,0.96558129,101020.0,101010.0,0.00197512]
[1762289048729,1.26153647,101020.0,101010.0,0.00197512]
[1762289049107,1.60153647,101020.0,101010.0,0.00197512]
[1762289049507,1.40355588,101020.0,101010.0,0.00197512]
[1762289049720,1.60153647,101020.0,101010.0,0.00197512]
[1762289050478,1.64771874,101020.0,101010.0,0.00197512]
[1762289050677,1.60153647,101020.0,101010.0,0.00197512]
[1762289052277,1.63771875,101020.0,101010.0,0.00197512]
[1762289052484,1.64771874,101020.0,101010.0,0.00197512]
[1762289052720,1.60153647,101020.0,101010.0,0.00197512]
[1762289053140,1.60142656,101020.0,101010.0,0.00197512]
[1762289054357,1.24122588,101020.0,101010.0,0.00197512]
[1762289054561,1.06319588,101020.0,101010.0,0.00197512]
[1762289054720,1.40319588,101020.0,101010.0,0.02597512]
[1762289054920,1.33893588,101020.0,101010.0,0.00197512]
[1762289055127,0.85464588,101020.0,101010.0,0.02597512]
[1762289055329,0.85464588,101020.0,101010.0,0.00197512]
[1762289055543,0.85464588,101020.0,101010.0,0.22415531]
[1762289055751,0.85464588,101020.0,101010.0,0.22433531]
[1762289055752,0.00014459,101020.0,101010.0,0.22433531]
[1762289056323,0.85450129,101050.0,101040.0,0.1979412]
[1762289056570,0.85450129,101070.0,101040.0,0.20849104]
[1762289056785,0.85450129,101070.0,101040.0,0.00082277]
[1762289056988,0.10788373,101080.0,101070.0,0.024]
[1762289057194,0.34,101070.0,101060.0,0.024]
[1762289057400,0.06426,101060.0,101040.0,0.02448277]
[1762289057604,0.2910611,101090.0,101070.0,0.024]
[1762289057863,0.85450129,101080.0,101050.0,0.20798791]
[1762289058478,0.85450129,101080.0,101070.0,0.024]
[1762289058682,1.15996751,101080.0,101050.0,0.024]
[1762289058894,0.20777709,101070.0,101040.0,0.00048277]
[1762289059105,0.85450129,101060.0,101050.0,0.024]
[1762289059278,0.09771,101070.0,101040.0,0.19841902]
[1762289059510,0.85450129,101060.0,101050.0,0.024]
[1762289059687,0.85450129,101070.0,101060.0,0.024]
[1762289060437,0.85450129,101070.0,101050.0,0.1979601]
[1762289060643,0.34,101080.0,101060.0,0.19807131]
[1762289060851,0.85450129,101080.0,101060.0,0.20796642]
[1762289061051,0.4085493,101090.0,101060.0,0.024]
[1762289061246,0.85450129,101080.0,101070.0,0.024]
[1762289061447,0.90040737,101090.0,101080.0,0.024]
[1762289061687,0.90040737,101090.0,101080.0,0.22220307]
[1762289061688,0.00022608,101090.0,101080.0,0.22220307]
[1762289062721,0.0003707,101090.0,101080.0,0.22220307]
[1762289063101,0.0003707,101090.0,101080.0,0.19820307]
[1762289063287,0.0003707,101090.0,101080.0,0.22220307]
[1762289063876,0.0003707,101090.0,101080.0,3.25838535]
[1762289064083,0.0003707,101090.0,101080.0,3.45838535]
[1762289064998,0.0003707,101090.0,101080.0,0.39824307]
[1762289065223,0.0003707,101090.0,101080.0,0.42224307]
[1762289066134,0.85487199,101090.0,101080.0,0.02421]
[1762289066351,0.85487199,101090.0,101080.0,4e-05]
[1762289066576,1.09777549,101090.0,101080.0,4e-05]
[1762289066790,1.25937479,101090.0,101080.0,4e-05]
[1762289067015,1.59937479,101090.0,101080.0,4e-05]
[1762289067455,2.38961608,101090.0,101080.0,4e-05]
[1762289067676,0.38506,101090.0,101080.0,4e-05]
[1762289067894,0.89956129,101090.0,101080.0,0.02404]
[1762289068141,0.99727129,101090.0,101080.0,4e-05]
[1762289068553,0.3406135,101090.0,101080.0,0.02404]
[1762289068726,0.99727129,101090.0,101080.0,4e-05]
[1762289068874,0.89956129,101090.0,101080.0,0.02404]
[1762289069280,0.89956129,101090.0,101080.0,4e-05]
[1762289069497,1.09740479,101090.0,101080.0,4e-05]
[1762289069698,1.19511479,101090.0,101080.0,4e-05]
[1762289070117,1.19511479,101090.0,101080.0,0.02404]
[1762289070319,1.19511479,101090.0,101080.0,4e-05]
[1762289070542,1.59937479,101090.0,101080.0,4e-05]
[1762289071586,0.54703,101090.0,101080.0,4e-05]
[1762289071790,1.43740479,101090.0,101080.0,0.02404]
[1762289072012,1.59521479,101090.0,101080.0,4e-05]
[1762289072969,2.49535608,101090.0,101080.0,4e-05]
[1762289073916,2.54153835,101090.0,101080.0,4e-05]
[1762289075127,1.68703706,101090.0,101080.0,4e-05]
[1762289075915,1.39240352,101060.0,101050.0,4e-05]
[1762289076188,1.50145352,101060.0,101050.0,4e-05]
[1762289076393,1.59738352,101060.0,101050.0,4e-05]
[1762289076595,1.60738054,101060.0,101050.0,4e-05]
[1762289078179,0.75287925,101060.0,101050.0,4e-05]
[1762289078367,1.60738054,101060.0,101050.0,4e-05]
[1762289079003,1.69920281,101060.0,101050.0,4e-05]
[1762289080937,0.19798059,101020.0,101010.0,0.00201512]
[1762289081138,1.15956188,101020.0,101010.0,0.00201512]
[1762289081365,1.59053188,101020.0,101010.0,0.00201512]
[1762289081571,0.73603059,101020.0,101010.0,0.00201512]
[1762289081750,1.59053188,101020.0,101010.0,0.00201512]
[1762289082149,1.59053188,101020.0,101010.0,0.02649789]
[1762289082941,1.59053188,101020.0,101010.0,0.00249789]
[1762289083926,1.59053188,101020.0,101010.0,0.02649789]
[1762289084128,1.30158129,101020.0,101010.0,0.00249789]
[1762289084333,1.59053188,101020.0,101010.0,0.00249789]
[1762289088228,1.59053188,101020.0,101010.0,0.02649789]
[1762289088630,1.59053188,101020.0,101010.0,0.00249789]
[1762289091538,0.73603059,101020.0,101010.0,0.00249789]
[1762289091952,0.53805,101020.0,101010.0,0.00249789]
[1762289092166,0.96158129,101020.0,101010.0,0.00249789]
[1762289092371,1.15956188,101020.0,101010.0,0.02649789]
[1762289092574,1.25053188,101020.0,101010.0,0.02649789]
[1762289092773,1.25053188,101020.0,100990.0,4e-05]
[1762289092774,0.5380198,101000.0,100990.0,4e-05]
[1762289092978,0.20797465,100980.0,100940.0,0.21810515]
[1762289093185,0.20797465,100980.0,100940.0,0.02448286]
[1762289093186,0.1980991,100960.0,100940.0,0.02448286]
[1762289093388,0.19807871,100970.0,100940.0,0.00048286]
[1762289093389,0.85450129,100950.0,100940.0,0.00048286]
[1762289093625,0.33449871,100970.0,100940.0,0.00048286]
[1762289093626,1.05260003,100960.0,100940.0,0.00048286]
[1762289093764,0.09097,100960.0,100950.0,0.024]
[1762289093982,1.20533954,100960.0,100950.0,0.024]
[1762289094376,1.11436954,100960.0,100950.0,0.024]
[1762289094598,1.00724129,100960.0,100940.0,0.02448286]
[1762289094795,0.85450129,100950.0,100940.0,0.02448286]
[1762289095450,0.38545,100970.0,100950.0,0.024]
[1762289095660,1.23995129,100970.0,100960.0,0.024]
[1762289096208,1.59076992,100970.0,100940.0,0.00048286]
[1762289096487,0.85450129,100960.0,100950.0,0.024]
[1762289096835,0.89995129,100970.0,100960.0,0.024]
[1762289097236,0.04545,100970.0,100960.0,0.024]
[1762289097514,0.86421243,100980.0,100970.0,0.024]
[1762289097672,0.86421243,100980.0,100950.0,0.20802325]
[1762289097673,1.0721744,100980.0,100950.0,0.01276589]
[1762289097872,0.85450129,100970.0,100950.0,0.21088311]
[1762289098069,0.33449877,100970.0,100950.0,0.024]
[1762289098268,0.13642,100970.0,100940.0,0.2085259]
[1762289098487,0.89995129,100970.0,100950.0,0.22211788]
[1762289098658,0.89995129,100970.0,100960.0,0.024]
[1762289099058,0.19810546,100960.0,100940.0,0.00048286]
[1762289099358,0.85450129,100950.0,100940.0,0.02448286]
[1762289099786,0.85450129,100950.0,100940.0,0.02647143]
[1762289100005,0.19811788,100950.0,100940.0,0.02647143]
[1762289100202,0.28907144,100960.0,100940.0,0.00247143]
[1762289100428,0.85450129,100950.0,100940.0,0.00048286]
[1762289100639,0.62907144,100960.0,100940.0,0.02448286]
[1762289100787,0.43097,100960.0,100940.0,0.00052286]
[1762289100989,1.39260727,100960.0,100950.0,0.024]
[1762289101194,0.25988788,100950.0,100940.0,0.02452286]
[1762289101374,1.54535917,100950.0,100940.0,0.00052286]
[1762289101802,1.34724129,100950.0,100940.0,0.00052286]
[1762289102010,0.85450129,100960.0,100940.0,0.03024286]
[1762289102255,1.05260394,100960.0,100940.0,0.00052286]
[1762289102459,1.54535917,100950.0,100940.0,0.02452286]
[1762289102658,1.54535917,100950.0,100940.0,0.00052286]
[1762289102863,1.34724129,100950.0,100940.0,0.00052286]
[1762289103064,0.18206,100970.0,100940.0,0.02452286]
[1762289103261,1.19450129,100960.0,100940.0,0.00338286]
[1762289103459,0.94559129,100970.0,100950.0,0.19811788]
[1762289103660,0.94559129,100970.0,100960.0,0.024]
[1762289103836,0.09109,100970.0,100960.0,0.024]
[1762289104042,1.09833129,100970.0,100960.0,0.024]
[1762289104245,1.306319,100970.0,100940.0,0.00052286]
[1762289104450,0.94559129,100970.0,100950.0,0.19811772]
[1762289104653,0.009925,100980.0,100970.0,0.024]
[1762289104654,0.34,100980.0,100970.0,0.024]
[1762289104850,0.85450129,100980.0,100970.0,0.024]
[1762289105058,0.04545,100990.0,100970.0,0.20093785]
[1762289105276,1.09797181,101000.0,100970.0,0.20379785]
[1762289105479,0.85450129,101000.0,100970.0,0.21370253]
[1762289105690,1.09797109,101000.0,100990.0,0.024]
[1762289105845,1.09797109,101000.0,100970.0,0.21370169]
[1762289106071,1.09797109,101000.0,100990.0,0.024]
[1762289106281,0.30900611,101010.0,100990.0,0.2008994]
[1762289106282,0.01013586,101010.0,100990.0,0.2008994]
[1762289106482,0.63148258,101010.0,101000.0,0.024]
[1762289106698,0.63148258,101010.0,100990.0,0.00286]
[1762289106912,0.82948304,101010.0,101000.0,0.024]
[1762289107298,0.63148258,101010.0,101000.0,0.024]
[1762289107726,0.29907397,101020.0,101010.0,0.024]
[1762289107931,1.27055655,101020.0,101010.0,0.024]
[1762289108146,1.33232655,101020.0,101010.0,0.024]
[1762289108361,1.34222557,101020.0,100990.0,0.00014459]
[1762289108579,0.63148258,101000.0,100990.0,0.02414459]
[1762289108992,0.34,101010.0,100990.0,0.02700459]
[1762289109216,0.2434698,101000.0,100990.0,0.00014459]
[1762289109416,0.04545,101000.0,100990.0,0.02414459]
[1762289109623,0.87495238,101000.0,100990.0,0.02414459]
[1762289109872,1.99917496,101000.0,100990.0,0.00014459]
[1762289110095,1.07870258,101000.0,100990.0,0.00014459]
[1762289110290,0.67693258,101000.0,100990.0,0.00014459]
[1762289110494,0.63148258,101000.0,100990.0,0.00014459]
[1762289110709,0.39994299,101020.0,100990.0,0.02414459]
[1762289110925,0.63148258,101000.0,100990.0,0.02414459]
[1762289111140,0.63148258,101000.0,100990.0,0.00014459]
[1762289111340,0.74461299,101020.0,100990.0,0.00014459]
[1762289111341,0.97148258,101010.0,101000.0,0.024]
[1762289111548,0.63148258,101010.0,100990.0,0.00586459]
[1762289111751,0.19800019,101010.0,101000.0,0.024]
[1762289111925,0.04898,101000.0,100990.0,0.02414459]
[1762289112158,0.92512277,101010.0,100990.0,0.00014459]
[1762289112159,0.19800041,101010.0,100990.0,0.00014459]
[1762289112368,0.63148258,101000.0,100990.0,0.00014459]
[1762289112539,0.63148258,101000.0,100990.0,0.02414459]
[1762289112688,0.82950238,101000.0,100990.0,0.00014459]
[1762289112888,0.63148258,101000.0,100990.0,0.00014459]
[1762289113157,0.35884047,101020.0,100990.0,0.20390399]
[1762289113158,0.39531792,101020.0,100990.0,0.20390399]
[1762289113283,0.63148258,101010.0,101000.0,0.00286]
[1762289113499,0.6316973,101020.0,101010.0,0.024]
[1762289114106,0.99937927,101020.0,100990.0,0.00014459]
[1762289114318,0.63148258,101000.0,100990.0,0.02414459]
[1762289114517,0.04898,101010.0,100990.0,0.22218399]
[1762289114768,0.68046258,101010.0,101000.0,0.024]
[1762289115173,0.6316973,101020.0,101000.0,0.2248798]
[1762289115400,1.16968183,101020.0,101000.0,0.00286]
[1762289115604,0.89379333,101010.0,100990.0,0.00014459]
[1762289115800,0.64373827,101020.0,100990.0,0.00014459]
[1762289116009,0.53819661,101020.0,101000.0,4e-05]
[1762289116194,0.63148258,101010.0,101000.0,4e-05]
[1762289116385,0.63148258,101010.0,101000.0,0.02404]
[1762289116947,0.00021472,101020.0,101000.0,4e-05]
[1762289117163,0.63148258,101010.0,101000.0,0.02404]
[1762289117389,0.63148258,101010.0,101000.0,0.2220598]
[1762289117600,0.00021472,101020.0,101010.0,0.22200019]
[1762289117791,0.00021472,101020.0,101010.0,0.20372019]
[1762289117992,0.00021472,101020.0,101010.0,0.23757444]
[1762289118263,0.00021472,101020.0,101010.0,0.22772019]
[1762289118806,0.00021472,101020.0,101010.0,0.20372019]
[1762289119411,0.00021472,101020.0,101010.0,0.22772019]
[1762289119622,0.00021472,101020.0,101010.0,0.20372019]
[1762289119841,0.00013472,101020.0,101010.0,0.22772019]
[1762289120046,0.00013472,101020.0,101010.0,3.83520277]
[1762289120408,0.00013472,101020.0,101010.0,4.11698505]
[1762289120553,0.00013472,101020.0,101010.0,4.14098505]
[1762289120760,0.00013472,101020.0,101010.0,4.69102504]
[1762289120962,1e-08,101020.0,101010.0,4.67702503]
[1762289121162,0.63148258,101070.0,101060.0,0.19790223]
[1762289121368,0.04545,101080.0,101060.0,0.22190223]
[1762289121567,0.67693258,101080.0,101070.0,0.024]
[1762289121733,0.63148258,101080.0,101070.0,0.22188265]
[1762289121951,0.00128228,101080.0,101070.0,0.00572]
[1762289122149,0.27335079,101080.0,101050.0,0.00286]
[1762289122388,0.63148258,101060.0,101030.0,0.21068141]
[1762289122590,0.63148258,101050.0,101040.0,0.024]
[1762289122748,0.82940619,101050.0,101040.0,0.024]
[1762289122969,0.69579258,101050.0,101040.0,0.024]
[1762289123309,0.63148258,101050.0,101040.0,0.024]
[1762289124017,0.63148258,101050.0,101040.0,0.00286]
[1762289124214,0.63148258,101050.0,101040.0,0.02686]
[1762289124515,0.63148258,101060.0,101040.0,0.2276614]
[1762289124693,0.63148258,101060.0,101050.0,0.02686]
[1762289124935,0.63148258,101060.0,101050.0,0.00286]
[1762289125141,1.03831876,101060.0,101030.0,0.00989805]
[1762289125312,0.40683618,101060.0,101050.0,0.024]
[1762289125514,0.19792305,101050.0,101040.0,0.024]
[1762289125689,0.82940563,101050.0,101040.0,0.024]
[1762289125895,0.63148258,101050.0,101040.0,0.024]
[1762289126087,0.04898,101060.0,101050.0,0.024]
[1762289126291,0.58688223,101060.0,101050.0,0.024]
[1762289126508,0.19792536,101050.0,101030.0,0.024]
[1762289126834,0.54893,101060.0,101050.0,0.024]
[1762289127039,0.68252223,101060.0,101050.0,0.024]
[1762289127252,0.74683223,101060.0,101050.0,0.024]
[1762289127474,1.37831481,101060.0,101050.0,0.024]
[1762289127647,1.3889895,101060.0,101050.0,0.024]
[1762289127852,0.19792719,101050.0,101010.0,0.21744019]
[1762289128055,0.63148258,101020.0,101010.0,0.0029]
[1762289128280,0.63148258,101020.0,101010.0,0.22775603]
[1762289128424,0.63148258,101030.0,101020.0,0.19797541]
[1762289128624,0.04898,101020.0,101010.0,4e-05]
[1762289128852,0.74477258,101020.0,101010.0,4e-05]
[1762289129092,0.19796508,101030.0,101020.0,0.024]
[1762289129093,0.48462,101030.0,101020.0,0.024]
[1762289129230,0.746891,101030.0,101020.0,0.024]
[1762289129431,1.18041258,101030.0,101020.0,0.024]
[1762289129690,1.18041258,101030.0,101010.0,4e-05]
[1762289129839,0.34,101030.0,101020.0,0.02686]
[1762289130045,0.63148258,101030.0,101020.0,0.22484059]
[1762289130863,0.63148258,101030.0,101020.0,0.024]
[1762289131067,0.30239827,101050.0,101020.0,0.00286]
[1762289131247,0.63148258,101030.0,101020.0,0.19798026]
[1762289131437,0.63148258,101030.0,101010.0,0.20793406]
[1762289131678,0.63148258,101030.0,101020.0,0.024]
[1762289131883,0.39861791,101050.0,101020.0,0.02686]
[1762289132059,0.09458,101050.0,101030.0,0.19795868]
[1762289132257,0.63148258,101050.0,101040.0,0.02686]
[1762289132558,0.63148258,101050.0,101020.0,0.21073679]
[1762289132761,0.63148258,101050.0,101040.0,0.00286]
[1762289132966,0.04898,101060.0,101040.0,0.00286]
[1762289133196,0.63148258,101050.0,101040.0,0.20080017]
[1762289133396,0.97162705,101060.0,101050.0,0.024]
[1762289133575,0.00014447,101060.0,101050.0,0.2430732]
[1762289133823,0.00092405,101060.0,101050.0,0.2459332]
[1762289134003,0.63240663,101060.0,101050.0,0.04801138]
[1762289134208,0.63240663,101060.0,101050.0,0.04515138]
[1762289134406,0.99082886,101060.0,101050.0,0.04229138]
[1762289134611,1.33082886,101060.0,101050.0,0.01829138]
[1762289135086,1.13292663,101060.0,101050.0,0.01829138]
[1762289135298,1.33082886,101060.0,101050.0,0.04229138]
[1762289135498,1.33082886,101060.0,101050.0,0.01829138]
[1762289135910,1.03670663,101060.0,101050.0,0.01829138]
[1762289136024,0.97240663,101060.0,101050.0,0.04229138]
[1762289136233,0.63240663,101060.0,101050.0,0.04229138]
[1762289136664,0.63240663,101060.0,101050.0,0.01829138]
[1762289136863,0.83030886,101060.0,101050.0,0.01829138]
[1762289137069,0.99082886,101060.0,101050.0,0.04229138]
[1762289137472,0.79292663,101060.0,101050.0,0.04229138]
[1762289137671,0.99082886,101060.0,101050.0,0.01829138]
[1762289138011,1.33082886,101060.0,101050.0,0.01829138]
[1762289138426,1.33082886,101060.0,101050.0,0.04229138]
[1762289138835,1.33082886,101060.0,101050.0,0.01829138]
[1762289139182,1.33082886,101060.0,101050.0,0.04229138]
[1762289139806,1.32990481,101060.0,101050.0,0.04229138]
[1762289140535,1.32990481,101060.0,101050.0,0.04122147]
[1762289140873,1.96138739,101060.0,101050.0,0.01722147]
[1762289141077,0.00989609,101050.0,101020.0,0.024]
[1762289141276,0.19798059,101020.0,101010.0,4e-05]
[1762289141504,0.82946317,101020.0,101010.0,4e-05]
[1762289141698,0.89504317,101020.0,101010.0,4e-05]
[1762289141861,0.98587317,101020.0,101010.0,4e-05]
[1762289142067,1.32587317,101020.0,101010.0,4e-05]
[1762289142463,1.32587317,101020.0,101010.0,0.00018447]
[1762289143257,1.32587317,101020.0,101010.0,0.00022447]
[1762289143457,1.37143317,101020.0,101010.0,1e-08]
[1762289143874,1.38134769,101020.0,101010.0,1e-08]
[1762289144042,2.01283027,101020.0,101010.0,1e-08]
[1762289144609,2.04901255,101020.0,101010.0,1e-08]
[1762289144813,2.05901254,101020.0,101010.0,1e-08]
[1762289145426,2.06901253,101020.0,101010.0,1e-08]
[1762289145606,0.6363794,100990.0,100980.0,0.02596583]
[1762289145808,1.26786198,100990.0,100980.0,0.00211042]
[1762289146192,1.35869198,100990.0,100980.0,0.00211042]
[1762289147596,1.16952198,100990.0,100980.0,0.00211042]
[1762289147825,1.32593198,100990.0,100980.0,0.00211042]
[1762289149512,0.6944494,100990.0,100980.0,0.00211042]
[1762289149713,1.32593198,100990.0,100980.0,0.00211042]
[1762289149927,0.19805902,100980.0,100970.0,4e-05]
[1762289150129,0.19811594,100960.0,100940.0,4e-05]
[1762289150324,0.18200567,100970.0,100940.0,0.00553286]
[1762289150531,0.19809825,100960.0,100940.0,0.00553286]
[1762289150757,0.81348825,100970.0,100960.0,0.00501]
[1762289151288,0.81348825,100970.0,100960.0,0.02901]
[1762289152007,0.19805984,100980.0,100970.0,0.024]
[1762289152135,0.19805902,100980.0,100970.0,0.01002]
[1762289152327,0.19805902,100980.0,100970.0,0.00501]
[1762289152990,0.19807863,100970.0,100960.0,0.024]
[1762289153125,0.19807863,100970.0,100950.0,0.00501]
[1762289153126,0.19809825,100960.0,100950.0,0.00501]
[1762289153326,0.87597121,100970.0,100940.0,0.27442507]
[1762289153574,0.19809825,100960.0,100950.0,0.03402]
[1762289153992,0.82956121,100970.0,100960.0,0.024]
[1762289154298,0.82956121,100970.0,100950.0,0.01002]
[1762289154496,0.82956121,100970.0,100960.0,0.024]
[1762289155109,0.19809825,100960.0,100940.0,0.07628801]
[1762289155312,0.19811788,100950.0,100940.0,0.00553286]
[1762289155444,0.19811788,100950.0,100940.0,0.02953286]
[1762289155652,0.19811788,100950.0,100940.0,0.03454286]
[1762289155992,0.19811788,100950.0,100940.0,0.02953286]
[1762289156237,0.19811788,100950.0,100940.0,0.00052286]
[1762289156238,0.89518046,100950.0,100940.0,0.00052286]
[1762289156447,1.33599383,100950.0,100940.0,0.00153011]
[1762289156626,1.38155383,100950.0,100940.0,0.00153011]
[1762289158021,0.75007125,100950.0,100940.0,0.00153011]
[1762289158192,1.38155383,100950.0,100940.0,0.00153011]
[1762289160456,1.41773611,100950.0,100940.0,0.00153011]
[1762289161141,1.4277361,100950.0,100940.0,0.00153011]
[1762289161687,1.41773611,100950.0,100940.0,0.00153011]
[1762289162087,1.41773611,100950.0,100910.0,0.0004]
[1762289162088,1.80114193,100920.0,100910.0,0.0004]
[1762289162293,1.80114193,100920.0,100910.0,0.00054471]
[1762289162294,1.94926193,100920.0,100910.0,0.00054471]
[1762289162492,2.04009193,100920.0,100910.0,0.00054471]
[1762289162895,1.27221935,100920.0,100910.0,0.00054471]
[1762289163095,0.04641,100930.0,100910.0,0.20375074]
[1762289163297,0.04641,100930.0,100920.0,0.024]
[1762289163502,1.21604971,100930.0,100920.0,0.024]
[1762289163820,0.19817677,100920.0,100910.0,0.00054471]
[1762289164038,0.38641,100930.0,100910.0,0.00054471]
[1762289164239,0.04641,100930.0,100910.0,0.02454471]
[1762289164561,0.63148258,100930.0,100920.0,0.02901]
[1762289164725,0.82963971,100930.0,100920.0,0.02901]
[1762289164929,0.98604971,100930.0,100910.0,0.02454471]
[1762289165173,0.98606935,100920.0,100910.0,0.00054471]
[1762289165328,0.63148258,100920.0,100910.0,0.00054471]
[1762289165711,0.05631687,100940.0,100910.0,0.20876112]
[1762289165841,0.5944546,100940.0,100930.0,0.024]
[1762289166050,0.19815713,100930.0,100910.0,0.00555471]
[1762289166415,1.05437514,100930.0,100910.0,0.00054471]
[1762289166704,1.05437514,100930.0,100920.0,0.024]
[1762289166908,1.05437514,100930.0,100910.0,0.00054471]
[1762289167113,1.05439445,100920.0,100910.0,0.00054471]
[1762289167455,1.21080445,100920.0,100910.0,0.00054471]
[1762289167866,1.55080445,100920.0,100910.0,0.00130051]
[1762289168060,1.59636445,100920.0,100910.0,0.00130051]
[1762289168297,0.1982357,100890.0,100880.0,0.0244]
[1762289168519,1.15572338,100890.0,100880.0,0.02454483]
[1762289168733,1.15572338,100890.0,100880.0,0.00054483]
[1762289168958,1.58655338,100890.0,100880.0,0.00054483]
[1762289169186,1.58655338,100890.0,100880.0,0.00130094]
[1762289169857,0.44127,100890.0,100880.0,0.02530094]
[1762289170109,0.34,100890.0,100880.0,0.02530094]
[1762289170602,1.26225768,100890.0,100880.0,0.00130094]
[1762289170886,1.55077338,100890.0,100880.0,0.00130094]
[1762289171445,1.26225768,100890.0,100880.0,0.00130094]
[1762289171733,1.55077338,100890.0,100880.0,0.00130094]
[1762289173086,1.55077338,100890.0,100880.0,0.02530094]
[1762289173087,1.19621768,100890.0,100880.0,0.02530094]
[1762289173322,1.39445338,100890.0,100880.0,0.02530094]
[1762289173521,1.55077338,100890.0,100880.0,0.00130094]
[1762289173843,1.55077338,100890.0,100880.0,0.02530094]
[1762289174040,1.55077338,100890.0,100880.0,0.00130094]
[1762289174041,0.34,100890.0,100880.0,0.00130094]
[1762289174240,1.39445338,100890.0,100880.0,0.02530094]
[1762289174375,1.19621768,100890.0,100880.0,0.02530094]